Cogmind - Beta 11 --- EXPLORER MODE // 2022.04.13 @ 17:30:47 Player: viper Result: Self-destructed Performance ------------- Evolutions (5) 2500 Regions Visited (6) 1200 Robots Destroyed (193) 965 Value Destroyed (6858) 6858 Prototype IDs (7) 140 Alien Tech Used (0) 0 Bonus (99) 99 TOTAL SCORE: 11762 Bonus ------- High Alert Combat Kills 152 Friendly Fire -53 Cogmind --------- Core Integrity 618/1000 Matter 475/800 Energy 70/100 System Corruption 4% Temperature Warning (302) Movement Core (850) Ox16 Location -5/Factory Parts ------- > --- POWER (3) -------- (None) > --- PROPULSION (4) --- (None) > --- UTILITY (7) ------ Improved Cryofiber Web High-capacity Storage Unit Matter Compressor Matter Compressor Core Analyzer System Shield > --- WEAPON (4) ------- (None) > --- INVENTORY (20) --- Improved Titanium Leg Improved Titanium Leg Improved Titanium Leg Improved Titanium Leg Flexi-carbon Leg Flexi-carbon Leg Flexi-carbon Leg Armored Leg Enhanced Flexi-carbon Leg Improved Cryofiber Web High-capacity Matter Pod (200) Advanced Terrain Scanner Improved Kinecellerator Enhanced Autogun Remote Datajack Peak State ------------ > --- POWER ------------ Angular Momentum Engine Angular Momentum Engine Light Angular Momentum Engine > --- PROPULSION ------- Flexi-carbon Leg Armored Leg Enhanced Flexi-carbon Leg Enhanced Flexi-carbon Leg > --- UTILITY ---------- High-capacity Storage Unit Improved Energy Well Matter Compressor Matter Compressor Core Analyzer Core Shielding System Shield > --- WEAPON ----------- Enhanced Autogun Enhanced Autogun Gauss Rifle Heavy Flak Cannon > --- INVENTORY -------- Micro Nuclear Core Micro Nuclear Core Improved Titanium Leg Improved Titanium Leg Improved Titanium Leg Improved Titanium Leg Flexi-carbon Leg Flexi-carbon Leg Flexi-carbon Leg Armored Leg Enhanced Flexi-carbon Leg Improved Cryofiber Web Improved Cryofiber Web High-capacity Matter Pod Advanced Terrain Scanner Improved Kinecellerator Enhanced Autogun Remote Datajack Greatsword [Rating: 90] Favorites ----------- Power Angular Momentum Engine Engine Angular Momentum Engine Power Core Micro Nuclear Core Propulsion Flexi-carbon Leg Treads Improved Medium Treads Leg Flexi-carbon Leg Utility Core Shielding Device Improved Cryofiber Web Storage Medium Storage Unit Processor Targeting Computer Hackware System Shield Protection Core Shielding Weapon Enhanced Autogun Energy Gun EM Pulse Gun Ballistic Gun Enhanced Autogun Ballistic Cannon Heavy Flak Cannon Special Weapon Mining Laser Slashing Weapon Greatsword Build | -11 -10 -9 -8 -7 -6 -5 ------- Run | Scr Mat Mat Mat Fac Fac Fac Slots Evolved 11 | . 1 2 2 2 2 2 Power 2 | . 1 . . . . 1 Propulsion 2 | . . . 2 . . . Utility 5 | . . 2 . 2 . 1 Weapon 2 | . . . . . 2 . Parts Attached 123 | 7 3 4 14 6 59 30 Power 22 | 1 1 1 2 2 9 6 Engine 16 | 1 1 1 . 2 7 4 Core 6 | . . . 2 . 2 2 Reactor . | . . . . . . . Propulsion 34 | 2 . . 7 . 19 6 Treads 2 | . . . . . 2 . Leg 32 | 2 . . 7 . 17 6 Wheel . | . . . . . . . Hover . | . . . . . . . Flight . | . . . . . . . Utility 38 | 2 . 3 1 4 20 8 Device 18 | . . 1 . 3 11 3 Storage 8 | 1 . . 1 . 3 3 Processor 6 | 1 . 1 . 1 2 1 Hackware 1 | . . . . . 1 . Protection 5 | . . 1 . . 3 1 Artifact . | . . . . . . . Weapon 29 | 2 2 . 4 . 11 10 Energy Gun 3 | 2 1 . . . . . Energy Cannon . | . . . . . . . Ballistic Gun 22 | . . . 4 . 11 7 Ballistic Cannon 1 | . . . . . . 1 Launcher . | . . . . . . . Special Weapon 1 | . 1 . . . . . Impact Weapon . | . . . . . . . Slashing Weapon 2 | . . . . . . 2 Piercing Weapon . | . . . . . . . Special Melee Weapon . | . . . . . . . Unidentified Prototypes 5 | . . . 1 . 1 3 Parts Lost 28 | . . . 1 1 9 17 Power 7 | . . . . 1 1 5 Propulsion 6 | . . . . . 2 4 Utility 6 | . . . 1 . 3 2 Weapon 9 | . . . . . 3 6 Highest Loss Streak 15 | . . . 1 1 5 15 To Critical Strikes 1 | . . . . . . 1 Average Slot Usage (%) 98 | . 100 100 98 98 99 98 Engine 9 | . 25 20 1 2 7 15 Core 4 | . . . 14 10 3 . Leg 24 | . 25 20 32 28 24 21 Device 11 | . . 2 6 13 13 10 Storage 11 | . 12 10 9 13 11 11 Processor 4 | . 12 17 8 7 1 5 Hackware 3 | . . . . . 4 5 Protection 5 | . . 10 8 7 5 4 Energy Gun 1 | . 22 20 . . . . Ballistic Gun 20 | . . . 15 14 24 20 Naked Turns . | . . . . . . . Heaviest Build 105 | 19 24 27 39 49 86 105 Greatest Support 92 | 20 20 20 66 75 76 92 Greatest Overweight (x) 1 | . 1 1 1 . 1 1 Average Overweight (x) . | . 1 1 . . . . Largest Inventory Capacity 20 | 10 10 10 10 10 20 20 Average Capacity 14 | 8 10 10 10 10 14 20 Most Carried 20 | 4 4 6 10 10 20 20 Average Carried 12 | 1 3 4 9 8 12 18 Final Capacity 20 | 10 10 10 10 10 20 20 Final Carried 20 | 3 4 6 10 10 20 15 Class Distribution -------------------- 41% | Hacker-Tank 29% | Hacker-Gunner 26% | Hacker-Mutant Dominant Class ---------------- Hacker-Mutant | -10/Materials Hacker-Mutant | -9/Materials Hacker-Mutant | -8/Materials Hacker-Mutant | -7/Factory Hacker-Tank | -6/Factory Hacker-Gunner | -5/Factory Resources | -11 -10 -9 -8 -7 -6 -5 ----------- Run | Scr Mat Mat Mat Fac Fac Fac Matter Collected 7816 | 248 52 30 627 659 4628 1572 Remotely . | . . . . . . . Salvage Created 10829 | . 36 215 991 745 6144 2698 Parts 530 | . 3 19 47 43 291 127 Haulers Intercepted 17 | . . . 4 2 8 3 Recyclers Shooed 14 | . . . . 1 6 7 Parts Field Recycled . | . . . . . . . Retrieved Matter . | . . . . . . . Parts Self-Destructed . | . . . . . . . Prevented . | . . . . . . . Kills | -11 -10 -9 -8 -7 -6 -5 ------- Run | Scr Mat Mat Mat Fac Fac Fac Combat Hostiles Destroyed 130 | . 2 5 13 9 75 26 Guns 128 | . 2 5 13 9 74 25 Cannons 1 | . . . . . . 1 AOE 1 | . . . . . 1 . Classes Destroyed 15 | . 1 3 5 3 3 . Worker 20 | . . . . 1 12 7 Builder 4 | . . . . 1 2 1 Tunneler 2 | . . . . . 2 . Hauler 17 | . . . 4 2 8 3 Recycler 15 | . . . 1 1 6 7 Operator 6 | . . 1 . 1 4 . Watcher 14 | . . 1 1 2 7 3 Swarmer 19 | . 2 2 . . 8 7 Grunt 62 | . . 3 10 6 36 7 Brawler 1 | . . . . . 1 . Duelist 3 | . . . 1 . 2 . Sentry 11 | . . . 1 1 8 1 Hunter 13 | . . . 1 1 6 5 Programmer 20 | . . . . 1 13 6 Behemoth 1 | . . . . . 1 . Best Kill Streak 12 | . 2 5 5 10 12 8 Combat Bots Only 6 | . 2 5 4 6 6 4 Max Kills in Single Turn 4 | . 2 1 2 1 2 4 Gunslinging 2 | . 1 . 1 . 1 2 Exploded 1 | . . . . . 1 . Melee . | . . . . . . . Uniques/NPCs Destroyed . | . . . . . . . Combat | -11 -10 -9 -8 -7 -6 -5 -------- Run | Scr Mat Mat Mat Fac Fac Fac Damage Taken 6507 | . 25 171 550 215 2711 2835 Core 912 | . . 28 40 18 444 382 Absorbed by Shields 537 | . . . . . 537 . Redirected to Shielding 202 | . . 5 9 2 136 50 Regen/Repaired (Parts) 877 | . . . 85 . 393 399 Core Remaining (%) 88 | 100 100 93 92 97 47 . Volleys Fired 449 | . 2 16 69 48 231 83 Largest 4 | . 2 2 2 2 4 4 Hottest 131 | . 100 90 56 50 109 131 Shots Fired 1497 | . 3 32 128 96 907 331 Gun 1487 | . 2 32 128 96 907 322 Cannon 9 | . . . . . . 9 Launcher . | . . . . . . . Special 1 | . 1 . . . . . Kinetic 1462 | . . . 128 96 907 331 Thermal 18 | . 2 16 . . . . Explosive . | . . . . . . . Electromagnetic 17 | . 1 16 . . . . Robot Hit Streak 73 | . 2 18 24 18 73 33 Robot Miss Streak 8 | . . 3 3 2 8 3 Penetration Max 1 | . . . 1 . 1 1 Secondary Targets 29 | . 1 1 2 1 17 7 Max Gunslinging Chain 2 | . 1 1 1 1 2 2 Shots Hit Robots 1130 | . 2 24 109 75 692 228 Core Hits 499 | . 2 10 35 30 285 137 Critical Kills 7 | . . . . . 6 1 Critical Parts Destroyed 14 | . . . 3 . 10 1 Critical Strikes 22 | . . 1 3 . 16 2 Burn 1 | . . 1 . . . . Destroy 21 | . . . 3 . 16 2 Melee Attacks 1 | . . . . . . 1 Impact . | . . . . . . . Slashing 1 | . . . . . . 1 Piercing . | . . . . . . . Sneak Attacks . | . . . . . . . Combat Hostiles . | . . . . . . . Follow-up Attacks . | . . . . . . . Damage Inflicted 22049 | . 24 316 1953 1428 13802 4526 Guns 20731 | . 24 316 1953 1296 12980 4162 Cannons 303 | . . . . . . 303 Explosions 941 | . . . . 132 809 . Melee . | . . . . . . . Ramming 74 | . . . . . 13 61 Kinetic 20694 | . . . 1953 1296 12980 4465 Thermal 347 | . 13 137 . 132 65 . Explosive 691 | . . . . . 691 . Electromagnetic 243 | . 11 179 . . 53 . Impact . | . . . . . . . Slashing . | . . . . . . . Piercing . | . . . . . . . Highest Corruption 8 | . . . 1 1 8 4 Average Corruption 4 | . . . 1 1 4 2 Corruption Purged 5 | . . . . . 5 . Corruption Blocked . | . . . . . . . Effects 87 | . . . 1 1 81 4 Message Errors 21 | . . . . . 21 . Matter Fused 22 | . . . . . 22 . Heat Flow Errors 8 | . . . . . 7 1 Energy Discharges 12 | . . . . . 11 1 Data Loss (minor) 8 | . . . 1 1 5 1 Data Loss (major) 3 | . . . . . 3 . Misfires 6 | . . . . . 5 1 Alerts 1 | . . . . . 1 . Weapon Failures 6 | . . . . . 6 . Overload Shots . | . . . . . . . Overflow Damage 68 | . . . . 33 35 . Projectiles . | . . . . . . . Explosions 68 | . . . . 33 35 . Melee . | . . . . . . . Knockbacks 3 | . . . . . . 3 Impact . | . . . . . . . Kinetic 3 | . . . . . . 3 Secondary . | . . . . . . . Self-Inflicted Damage 278 | . . . . . 278 . Shots 8 | . . . . . 8 . Rammed . | . . . . . . . Targets Rammed 12 | . . . . . 2 10 Kicked 12 | . . . . . 2 10 Crushed . | . . . . . . . Highest Temperature 635 | . 45 518 250 77 635 543 Average Temperature 135 | . 23 228 86 21 158 150 Received Heat Transfer 2733 | . . 138 378 117 885 1215 Effects 44 | . . 15 2 . 20 7 Shutdowns 5 | . . 4 . . 1 . Energy Bleed 5 | . . 2 . . 2 1 Interference 16 | . . 3 2 . 8 3 Matter Decay 2 | . . . . . 1 1 Short Circuit 4 | . . 1 . . 2 1 Damage (minor) 2 | . . . . . 1 1 Damage (major) 8 | . . 5 . . 3 . Damage (core) 2 | . . . . . 2 . Siege Activations . | . . . . . . . Robots Corrupted . | . . . . . . . Combat Hostiles . | . . . . . . . Parts Fried . | . . . . . . . Impact Corruptions . | . . . . . . . Robots Melted . | . . . . . . . Combat Hostiles . | . . . . . . . Parts Melted 1 | . . 1 . . . . Heat Transferred 718 | . 37 481 . 150 50 . Parts Sabotaged 3 | . . . . . 3 . Parts Stolen . | . . . . . . . Parts Stripped . | . . . . . . . Power Chain Reactions . | . . . . . . . Missiles Intercepted . | . . . . . . . Alert | -11 -10 -9 -8 -7 -6 -5 ------- Run | Scr Mat Mat Mat Fac Fac Fac Peak Influence 568 | . 53 167 246 234 568 390 Initial 84 | . . 15 . 81 84 52 Average 144 | . 29 49 63 163 183 113 Maximum Alert Level 2 | . . . 1 1 2 1 Low Security (%) 71 | 100 100 100 92 80 61 73 Level 1 22 | . . . 7 19 28 26 Level 2 5 | . . . . . 10 . Level 3 . | . . . . . . . Level 4 . | . . . . . . . Level 5 . | . . . . . . . High Security . | . . . . . . . Max Security . | . . . . . . . Squads Dispatched 38 | . . 1 3 3 25 6 Investigation 14 | . . . 2 . 10 2 Extermination 12 | . . . . 1 8 3 Reinforcement 9 | . . 1 . 2 5 1 Assault 1 | . . . . . 1 . Garrison 2 | . . . 1 . 1 . Intercept . | . . . . . . . Searches Triggered . | . . . . . . . Construction Impeded 2 | . . . . 1 1 . Haulers Reinforced 2 | . . . . . 1 1 Active Scanning Responses . | . . . . . . . Cargo Convoy Interrupts 1 | . . . . . . 1 Stealth | -11 -10 -9 -8 -7 -6 -5 --------- Run | Scr Mat Mat Mat Fac Fac Fac Distress Signals 4 | . . . 1 1 1 1 Communications Jammed . | . . . . . . . Distress Signals . | . . . . . . . Times Spotted 179 | . 3 7 16 12 95 46 Peak Tracking Total 9 | . 3 4 4 4 6 9 Tactical Retreats . | . . . . . . . Traps | -11 -10 -9 -8 -7 -6 -5 ------- Run | Scr Mat Mat Mat Fac Fac Fac Traps Triggered 3 | . . . 1 . 2 . Indirectly . | . . . . . . . Trap Hack Attempts . | . . . . . . . Triggered . | . . . . . . . Disarmed . | . . . . . . . Reprogrammed 1 | . . . . . 1 . Reused . | . . . . . . . Traps Extracted . | . . . . . . . Installed . | . . . . . . . Triggered . | . . . . . . . Machines | -11 -10 -9 -8 -7 -6 -5 ---------- Run | Scr Mat Mat Mat Fac Fac Fac Machines Disabled 31 | . . . 3 4 24 . Max in Single Turn 4 | . . . 1 4 4 . Garrison Access 1 | . . . . . 1 . Machines Sabotaged . | . . . . . . . Garrisons Compromised . | . . . . . . . Overloaded Fab Kills . | . . . . . . . Hacking | -11 -10 -9 -8 -7 -6 -5 --------- Run | Scr Mat Mat Mat Fac Fac Fac Machines Accessed 28 | . 3 . 3 2 17 3 Terminals 15 | . 3 . 1 2 8 1 Fabricators 4 | . . . . . 4 . Repair Stations 6 | . . . 1 . 3 2 Recycling Units . | . . . . . . . Scanalyzers 2 | . . . 1 . 1 . Garrison Access 1 | . . . . . 1 . Total Hacks 105 | . 11 . 10 4 63 17 Successful 82 | . 10 . 10 3 44 15 Failed 23 | . 1 . . 1 19 2 Catastrophic 3 | . . . . . 2 1 Database Lockouts . | . . . . . . . Manual . | . . . . . . . Terminals 46 | . 11 . 1 4 26 4 Fabricators 12 | . . . . . 12 . Repair Stations 32 | . . . 5 . 14 13 Recycling Units . | . . . . . . . Scanalyzers 14 | . . . 4 . 10 . Garrison Access 1 | . . . . . 1 . Terminal Hacks 31 | . 10 . 1 3 15 2 Record 6 | . 3 . . 1 2 . Part Schematic 2 | . . . . . 2 . Prototype ID Bank 1 | . . . . . 1 . Open DSF 2 | . . . . 1 1 . Branch Access Points 3 | . 1 . . . 1 1 Emergency Access Points 2 | . 1 . . . . 1 Alert Level 1 | . . . . . 1 . Unreport Threat 1 | . . . . . 1 . Locate Traps 5 | . 2 . 1 . 2 . Reprogram Traps 1 | . . . . . 1 . Dispatch Records 1 | . 1 . . . . . Patrol Status 1 | . 1 . . . . . Zone Layout 5 | . 1 . . 1 3 . Fabricator Hacks 8 | . . . . . 8 . Load Schematic 4 | . . . . . 4 . Build 4 | . . . . . 4 . Repair Station Hacks 28 | . . . 5 . 10 13 Scan Component 16 | . . . 3 . 6 7 Repair 12 | . . . 2 . 4 6 Recycling Unit Hacks . | . . . . . . . Scanalyzer 14 | . . . 4 . 10 . Insert Component 7 | . . . 2 . 5 . Analyze 7 | . . . 2 . 5 . Garrison Access Hacks 1 | . . . . . 1 . Seal Access 1 | . . . . . 1 . Unauthorized Hacks . | . . . . . . . Terminals . | . . . . . . . Fabricators . | . . . . . . . Repair Stations . | . . . . . . . Recycling Units . | . . . . . . . Scanalyzers . | . . . . . . . Garrison Access . | . . . . . . . Data Cores Recovered 1 | . . . . . 1 . Used . | . . . . . . . Hacking Detections 23 | . 3 . 2 2 13 3 Full Trace Events 14 | . . . 2 . 10 2 Feedback Events . | . . . . . . . Feedback Blocked . | . . . . . . . Robot Schematics Acquired . | . . . . . . . Robots Built 1 | . . . . . 1 . Authchips . | . . . . . . . Time 67 | . . . . . 67 . Total Robot Build Rating 4 | . . . . . 4 . Part Schematics Acquired 9 | . . . 2 . 7 . Parts Built 4 | . . . . . 4 . Authchips . | . . . . . . . Time 147 | . . . . . 147 . Total Part Build Rating 16 | . . . . . 16 . Parts Repaired 12 | . . . 2 . 4 6 Time 434 | . . . 52 . 92 290 Parts Recycled . | . . . . . . . Recycled Matter . | . . . . . . . Retrieved Matter . | . . . . . . . Retrieved Components . | . . . . . . . Parts Scanalyzed 7 | . . . 2 . 5 . Part Schematics Acquired 7 | . . . 2 . 5 . Parts Damaged 1 | . . . . . 1 . Bothacking | -11 -10 -9 -8 -7 -6 -5 ------------ Run | Scr Mat Mat Mat Fac Fac Fac Used RIF Installer . | . . . . . . . Robots Hacked . | . . . . . . . Non-combat . | . . . . . . . Combat . | . . . . . . . Robot Hacks Applied . | . . . . . . . Relay Couplers Released 1 | . . . . . 1 . Machine Destruction 1 | . . . . . 1 . Fabnet Peak Effective % . | . . . . . . . Robots Rewired . | . . . . . . . Allies Hacked . | . . . . . . . Hacks Repelled . | . . . . . . . Allies | -11 -10 -9 -8 -7 -6 -5 -------- Run | Scr Mat Mat Mat Fac Fac Fac Total Allies 1 | . . . . . 1 . Largest Group 1 | . . . . . 1 . Highest-Rated Group 40 | . . . . . 40 . Highest-Rated Ally 40 | . . . . . 40 . Total Orders . | . . . . . . . Ally Attacks . | . . . . . . . Total Damage . | . . . . . . . Kills . | . . . . . . . Allies Corrupted . | . . . . . . . Allies Melted . | . . . . . . . Intel | -11 -10 -9 -8 -7 -6 -5 ------- Run | Scr Mat Mat Mat Fac Fac Fac Robot Analysis Total . | . . . . . . . Derelict Logs Recovered . | . . . . . . . Drone Launches . | . . . . . . . Drone Recoveries . | . . . . . . . Exploration | -11 -10 -9 -8 -7 -6 -5 ------------- Run | Scr Mat Mat Mat Fac Fac Fac Turns Passed 8744 | 74 245 492 727 656 4796 1754 Spaces Moved 4189 | 58 123 197 349 350 2575 537 Core 13 | 13 . . . . . . Treads 36 | . . . . . 36 . Legs 4140 | 45 123 197 349 350 2539 537 Wheels . | . . . . . . . Hover . | . . . . . . . Flight . | . . . . . . . Fastest Speed 50 | 50 190 190 125 127 120 120 Average Speed 146 | 104 190 190 128 127 137 188 Slowest Speed 200 | 120 190 190 190 127 200 193 Overloaded Moves . | . . . . . . . Propulsion Burnouts . | . . . . . . . Robots Hopped . | . . . . . . . Cave-ins Triggered 1 | . . . . . 1 . Exploration Rate (%) 24 | 3 31 21 26 8 68 12 Regions Visited 6 Branch Regions . Pre-discovered Areas . | . . . . . . . Known Exits Taken 6 | 1 1 1 1 1 1 . Unknown Exits Taken . | . . . . . . . Scrap Searched . | . . . . . . . Spaces Dug 2 | . 1 . . . . 1 Terrain Destroyed 88 | . 1 . 1 20 64 2 Melee 1 | . . . . . . 1 Projectile 6 | . 1 . 1 . 3 1 AOE 81 | . . . . 20 61 . Terrain Rammed . | . . . . . . . Walls Destroyed . | . . . . . . . Machines Disabled . | . . . . . . . Actions | -11 -10 -9 -8 -7 -6 -5 --------- Run | Scr Mat Mat Mat Fac Fac Fac Total 6142 | 68 129 283 527 503 3492 1140 Wait 1278 | . . 62 78 95 582 461 Move 4183 | 57 122 196 348 349 2574 537 Hop . | . . . . . . . Pick Up 43 | 4 2 4 7 2 18 6 Fast Attach 42 | 6 . . 11 4 14 7 Attach 35 | 1 1 3 . 2 16 12 Detach 5 | . . . . . 2 3 Swap 46 | . 2 1 3 . 29 11 Drop 48 | . . 1 11 3 24 9 Fire 449 | . 2 16 69 48 231 83 Melee 1 | . . . . . . 1 Ram . | . . . . . . . Kick 12 | . . . . . 2 10 Crush . | . . . . . . . Escape Stasis . | . . . . . . . Rewire . | . . . . . . . Trap . | . . . . . . . Miscellaneous . | . . . . . . . Route ------- -11/Scrapyard -10/Materials (discovered 3 exits: *Mat / Min x2) -9/Materials (discovered 2 exits: *Mat / *Min) -8/Materials -7/Factory -6/Factory (discovered 3 exits: *Fac / *Low x2) -5/Factory (discovered 2 exits: Upp x2) History --------- Turn | Location | Event 34 | -11/Scrapyard | Identified exit to Materials 34 | -11/Scrapyard | Discovered exit to Materials (range 15) 75 | -11/Scrapyard | Entered Materials 75 | -10/Materials | Evolved 1 slot: Power x1 166 | -10/Materials | Identified exit to Mines 305 | -10/Materials | Identified exit to Materials 305 | -10/Materials | Discovered exit to Materials (range 9) 316 | -10/Materials | Build established: Hacker-Mutant 320 | -10/Materials | Entered another Materials area 320 | -9/Materials | Evolved 2 slots: Utility x2 594 | -9/Materials | Identified exit to Mines 594 | -9/Materials | Discovered exit to Mines (range 6) 795 | -9/Materials | Identified exit to Materials 795 | -9/Materials | Discovered exit to Materials (range 10) 812 | -9/Materials | Entered another Materials area 812 | -8/Materials | Evolved 2 slots: Propulsion x2 938 | -8/Materials | Repaired Aluminum Leg 966 | -8/Materials | Repaired Aluminum Leg 1457 | -8/Materials | Garrison activated, responded to threat 1501 | -8/Materials | Identified exit to Factory 1501 | -8/Materials | Discovered exit to Factory (range 14) 1539 | -8/Materials | Entered Factory 1539 | -7/Factory | Evolved 2 slots: Utility x2 2191 | -7/Factory | Identified exit to Factory 2191 | -7/Factory | Discovered exit to Factory (range 3) 2195 | -7/Factory | Entered another Factory area 2195 | -6/Factory | Evolved 2 slots: Weapon x2 2322 | -6/Factory | Fabricated I-36 Angel (x1) 2369 | -6/Factory | Fabricated Imp. Cryofiber Web (x1) 2469 | -6/Factory | Build established: Hacker-Gunner 2629 | -6/Factory | Repaired Titanium Leg 3012 | -6/Factory | Spotted B-75 Beast 3022 | -6/Factory | Destroyed B-75 Beast 3025 | -6/Factory | Crushed by falling debris 3087 | -6/Factory | Lost 5 parts (1p2n2u) 3197 | -6/Factory | Garrison activated, responded to threat 3320 | -6/Factory | Build established: Hacker-Tank 3386 | -6/Factory | Fabricated Enh. Autogun (x1) 3478 | -6/Factory | Identified exit to Lower Caves 3478 | -6/Factory | Discovered exit to Lower Caves (range 12) 3595 | -6/Factory | First assault squad dispatched 3845 | -6/Factory | Repaired Enh. Autogun 4373 | -6/Factory | Repaired Core Shielding 5034 | -6/Factory | Repaired Enh. Autogun 6069 | -6/Factory | Fabricated Greatsword (x2) 6111 | -6/Factory | Core integrity fell below 50% 6906 | -6/Factory | Identified exit to Factory 6906 | -6/Factory | Discovered exit to Factory (range 9) 6991 | -6/Factory | Entered another Factory area 6991 | -5/Factory | Evolved 2 slots: Power x1, Utility x1 7089 | -5/Factory | Repaired Enh. Autogun 7140 | -5/Factory | Repaired Angular Momentum Engine 7192 | -5/Factory | Repaired Angular Momentum Engine 7237 | -5/Factory | Repaired Gauss Rifle 7293 | -5/Factory | Build established: Hacker-Gunner 7500 | -5/Factory | Repaired Enh. Autogun 7651 | -5/Factory | Repaired Core Shielding 8071 | -5/Factory | Identified exit to Upper Caves 8689 | -5/Factory | Cargo convoy interrupted 8745 | -5/Factory | Self-destructed Last Messages --------------- 08735_ Penetrated by Slug. 08735_ Kicked X-77 Beamer out of the way. 08737_ Kicked X-77 Beamer. 08738_ Penetrated by Slug. 08738_ Critical hit (Destroy). 08738_ Mic. Nuclear Core destroyed. 08738_ Penetrated by Slug. 08738_ K-01 Serf collects debris. 08739_ Kicked X-77 Beamer. 08739_ Mic. Nuclear Core destroyed. 08741_ Kicked X-77 Beamer out of the way. 08741_ Penetrated by Slug. 08742_ Kicked X-77 Beamer. 08742_ K-01 Serf collects debris. 08743_ Enh. Flexi-carbon Leg destroyed. 08743_ Core Shielding destroyed. 08743_ Kicked X-77 Beamer. 08744_ System corrupted: Energy discharge (-32). 08744_ Critical hit (Burn: +37). 08745_ Enh. Flexi-carbon Leg destroyed. Map ----- +----------------------------------------------------+ | ?????????????????????????????????????????????????? | | ?????????????????????????????????????????????????? | | ?????????????????????????????????????????????????? | | ?????????????????????????????????????????????????? | | ?????????????????????????????????????????????????? | | ?????????????????????????????????????????????????? | | ??????????????????????????? ?????????????????? | | ??????????????????????????# #????????????????? | | ??????????????????????????# #????????????????? | | ??????????????????????????# #????????????????? | | ??????????????????????????# #????????????????? | | ??????????????????????????# #????????????????? | | ??????????????????????????# u #????????????????? | | ??????????????????????????# #????????????????? | | ??????????????????????????# #????????????????? | | ?????????##############???# #????????????????? | | ?????????# #???# #????????????????? | | ?????????# [ #???# #????????????????? | | ?????????# ##### #############+##?? | | ?????????# # [][ ? | | ?????????# """ """ # gg * [=]!=][ ? | | ?????????# """ """ + g != *k%!]!![ ? | | ?????????# """ """ # m [!=[!]!%!= % ? | | ?????????# # x h =%%%!%!*[%! ? | | ?????????# """ """ # =%################ ?? | | ?????????# """ """ # x@ #????????????????????? | | ?????????# """ """ # #????????????????????? | | ?????????# # #????????????????????? | | ?????????#####?######## #????????????????????? | | ??????????????????????# %##############???????? | | ????????????########### # #???????? | | ????????????# # # #???????? | | ????????????# """ """ # # #???????? | | ????????????# "Y" """ # # #???????? | | #########???# """ # # #???????? | | #???#! # # #???????? | | #???# # % + #???????? | | #??## !! # % # = #???????? | | """ #??# !! !# # #???????? | | """ #########+##### # #???????? | | """ # ^ % %% t # #???????? | | # ^^ % # #???????? | | """ # ^ % ##############???????? | | """ + ^ % #????????????????????? | | """ # ^ % #????????????????????? | | ! # ###############????????????????????? | | # # !=#?????????????????????????? | | ######### # """ #?????????????????????????? | | #???????# # """ | #?????????????????????????? | | #???????# # """ #?????????????????????????? | +----------------------------------------------------+ Best States ------------- Heat Dissipation 40 Energy Generation 44 Energy Capacity 550 Matter Stores 683 Matter Capacity 800 Sight Range 16 Terrain Scan Density 10 Additional Mass Support 9 Base Temperature (-) 150 Resistance: KI 35 Resistance: TH 35 Resistance: EX 35 Resistance: EM 35 Resistance: I 35 Resistance: S 35 Resistance: P 35 Core Shielding 20 Weapon Shielding 66 Evasion (%) 55 Targeting Accuracy 5 Core Analysis 6 Recoil Reduction 2 Kinecelleration 30 Offensive Hacking 20 Defensive Hacking 10 Item Schematics ----------------- Enh. Autogun | -8/Materials | Scanalyzed Gauss Rifle | -8/Materials | Scanalyzed Imp. Cryofiber Web | -6/Factory | Hacked Angular Momentum Engine | -6/Factory | Scanalyzed Carbon-fiber Leg | -6/Factory | Scanalyzed Flexi-carbon Leg | -6/Factory | Scanalyzed Greatsword | -6/Factory | Scanalyzed Matter Compressor | -6/Factory | Scanalyzed Matter Neutralizer | -6/Factory | Hacked Robot Schematics ------------------ None Fabricated ------------ I-36 Angel | x1 | -6/Factory | Preloaded Imp. Cryofiber Web | x1 | -6/Factory Enh. Autogun | x1 | -6/Factory Greatsword | x2 | -6/Factory Alien Tech Used ----------------- None Achievements -------------- None Challenges ------------ None Game ------ Seed SpacefoldInsulationClaw Manual? 0 Play Time 01:16:38 Cumulative 1068.2 hours Start 2022.04.12 @ 22:14:00 End 2022.04.13 @ 17:30:47 Sessions 5 Manual Loads 0 Difficulty Explorer Special Mode None Game No. 778 Rogue 62 Adventurer 0 Explorer 716 Win Type - Total 4 Types 4/0/0/0/0/0/0/0/0 Lore% 69 Gallery% 78 Achievement% 60 Wizard Run 0 Options --------- ASCII 0 Keyboard 0 Movement Mouse Keybinds 0 Fullscreen 1 Font 24/Smallcaps Map View 76x50 Tactical HUD 1 Map Filters NONE Filters NONE Steam 1 RUN: 08f75712-a92c-4e29-a784-ef4f815b14da